fUSD/lending_fUSD_20250611
["ID","MTS","AMOUNT","RATE_DAILY","PERIOD"]
[365399214,1749652239718,-294.93542977,0.00019314,2]
[365399216,1749652239729,-294.93542977,0.00019417,2]
[365399218,1749652239739,-151.0,0.00019478,2]
[365399220,1749652239749,-151.0,0.00019478,2]
[365399222,1749652239759,-1000.0,0.00019507,2]
[365399224,1749652239768,-294.93542977,0.00019521,2]
[365399226,1749652239777,-782.525586,0.00019599,2]
[365399228,1749652239786,-294.93542977,0.00019624,2]
[365399230,1749652239796,-500.0,0.00019644,2]
[365399232,1749652239805,-168.0,0.00019649,2]
[365399234,1749652239814,-8902.736,0.000197,2]
[365399236,1749652239824,-1000.0,0.00019726,2]
[365399239,1749652239833,-156.587,0.00019726,2]
[365399241,1749652239842,-294.93542977,0.00019728,2]
[365399244,1749652239851,-528.0,0.00019734,2]
[365399246,1749652239861,-150.0,0.00019736,2]
[365399248,1749652239870,-150.0,0.00019748,2]
[365399250,1749652239879,-150.0,0.00019753,2]
[365399252,1749652239888,-150.0,0.00019777,2]
[365399253,1749652239898,-300.0,0.00019778,2]
[365399255,1749652239907,-250.0,0.00019778,2]
[365399257,1749652239918,-5524.35213627,0.00019789,2]
[365399259,1749652239928,-150.0,0.0001979,2]
[365399261,1749652239937,-6386.72,0.000198,3]
[365399263,1749652239946,-250.0,0.000198,2]
[365399265,1749652239955,-5524.35213623,0.00019801,2]
[365399266,1749652239964,-1000.0,0.00019802,2]
[365399268,1749652239974,-1035.43773163,0.00019814,2]
[365399271,1749652239986,-4488.9144046,0.00019814,2]
[365399272,1749652239996,-1000.0,0.00019824,2]
[365399274,1749652240006,-5524.35213623,0.00019826,2]
[365399276,1749652240015,-294.93542977,0.00019831,2]
[365399278,1749652240024,-217.88635311,0.00019836,2]
[365399279,1749652240033,-5524.35213623,0.00019838,2]
[365399281,1749652240042,-500.0,0.0001984,2]
[365399283,1749652240052,-963.742,0.0001984,2]
[365399285,1749652240062,-5524.35213623,0.00019851,2]
[365399287,1749652240072,-150.0,0.00019851,2]
[365399289,1749652240080,-5524.35213623,0.00019863,2]
[365399290,1749652240090,-1000.0,0.00019874,2]
[365399292,1749652240099,-5524.35213623,0.00019875,2]
[365399294,1749652240109,-1000.0,0.00019877,2]
[365399296,1749652240117,-500.0,0.00019885,2]
[365399298,1749652240126,-215.87648714,0.00019885,2]
[365399299,1749652240135,-500.0,0.00019885,2]
[365399301,1749652240144,-500.0,0.00019885,2]
[365399303,1749652240154,-228.11301398,0.00019885,2]
[365399305,1749652240166,-500.0,0.00019885,2]
[365399307,1749652240175,-500.0,0.00019885,2]
[365399308,1749652240185,-500.0,0.00019885,2]
[365399310,1749652240194,-4895.88992612,0.00019886,2]
[365399312,1749652240204,-4895.88992603,0.00019888,2]
[365399314,1749652240213,-5524.35213623,0.00019888,2]
[365399316,1749652240223,-420.0,0.00019888,2]
[365399318,1749652240232,-1000.0,0.00019889,2]
[365399319,1749652240241,-4895.88992603,0.00019889,2]
[365399321,1749652240250,-4895.88992603,0.00019891,2]
[365399323,1749652240260,-1000.0,0.00019892,2]
[365399325,1749652240270,-150.0,0.00019898,2]
[365399327,1749652240279,-5000.0,0.000199,2]
[365399329,1749652240288,-159.85641746,0.000199,2]
[365399331,1749652240297,-316.53295198,0.000199,2]
[365399332,1749652240307,-5524.35213623,0.000199,2]
[365399334,1749652240316,-395.39734653,0.000199,2]
[365399336,1749652240325,-207.2095282,0.000199,2]
[365399338,1749652240335,-6404.87239877,0.000199,2]
[365399340,1749652240344,-200.40811192,0.000199,2]
[365399341,1749652240353,-243.73,0.000199,2]
[365399343,1749652240363,-1000.0,0.00019913,2]
[365399345,1749652240372,-200.0,0.00019923,2]
[365399347,1749652240382,-294.93542977,0.00019934,2]
[365399349,1749652240392,-1000.0,0.00019946,2]
[365399351,1749652240403,-500.0,0.0001997,2]
[365399352,1749652240413,-500.0,0.0001997,2]
[365399354,1749652240423,-150.0,0.0001997,2]
[365399356,1749652240432,-150.0,0.0001997,2]
[365399358,1749652240443,-150.0,0.0001997,2]
[365399360,1749652240452,-150.0,0.0001997,2]
[365399361,1749652240461,-150.0,0.0001997,2]
[365399363,1749652240471,-150.0,0.0001997,2]
[365399365,1749652240482,-200.0,0.0001997,2]
[365399367,1749652240492,-641.05777722,0.00019973,2]
[365399369,1749652240502,-500.0,0.00019973,2]
[365399371,1749652240511,-175.82066896,0.00019973,2]
[365399372,1749652240520,-500.0,0.00019973,2]
[365399374,1749652240530,-500.0,0.00019973,2]
[365399376,1749652240540,-500.0,0.00019973,2]
[365399378,1749652240549,-500.0,0.00019973,2]
[365399380,1749652240558,-500.0,0.00019973,2]
[365399382,1749652240568,-500.0,0.00019973,2]
[365399384,1749652240578,-500.0,0.00019973,2]
[365399386,1749652240587,-500.0,0.00019973,2]
[365399387,1749652240596,-366.51961909,0.00019973,2]
[365399389,1749652240606,-500.0,0.00019973,2]
[365399391,1749652240615,-351.66912538,0.0001998,2]
[365399393,1749652240625,-1704.1005415,0.00019986,2]
[365399395,1749652240635,-1463.8441333,0.00019986,2]
[365399397,1749652240645,-1223.5877252,0.00019986,2]
[365399399,1749652240654,-983.331317,0.00019986,2]
[365399400,1749652240666,-743.0749089,0.00019986,2]
[365399402,1749652240679,-11415.1893108,0.00019986,2]
[365399404,1749652240692,-9627.8321304,0.00019986,2]
[365399406,1749652240702,-7840.4749499,0.00019986,2]
[365399408,1749652240711,-6053.1177694,0.00019986,2]
[365399410,1749652240721,-4265.760589,0.00019986,2]
[365399412,1749652240730,-156.61,0.00019986,2]
[365399414,1749652240739,-150.28,0.0001999,2]
[365399416,1749652240748,-150.28,0.0001999,2]
[365399418,1749652240758,-150.28,0.0001999,2]
[365399419,1749652240767,-150.28,0.0001999,2]
[365399421,1749652240777,-150.28,0.0001999,2]
[365399423,1749652240787,-20009.9582211,0.0001999,2]
[365399425,1749652240798,-213797.67675331,0.0001999,2]
[365399427,1749652240807,-150.28,0.0001999,2]
[365399429,1749652240816,-150.28,0.0001999,2]
[365399431,1749652240826,-150.28,0.0001999,2]
[365399432,1749652240835,-150.28,0.0001999,2]
[365399434,1749652240844,-150.28,0.0001999,2]
[365399436,1749652240854,-150.28,0.0001999,2]
[365399438,1749652240863,-150.28,0.0001999,2]
[365399440,1749652240872,-150.28,0.0001999,2]
[365399442,1749652240882,-150.28,0.0001999,2]
[365399444,1749652240891,-150.28,0.0001999,2]
[365399445,1749652240901,-150.28,0.0001999,2]
[365399447,1749652240912,-150.28,0.0001999,2]
[365399449,1749652240922,-150.28,0.0001999,2]
[365399451,1749652240931,-150.28,0.0001999,2]
[365399453,1749652240940,-150.28,0.0001999,2]
[365399455,1749652240949,-150.28,0.0001999,2]
[365399459,1749652241079,-150.28,0.0001999,2]
[365399461,1749652241088,-150.28,0.0001999,2]
[365399463,1749652241098,-150.28,0.0001999,2]
[365399464,1749652241107,-150.28,0.0001999,2]
[365399466,1749652241115,-150.28,0.0001999,2]
[365399468,1749652241126,-150.28,0.0001999,2]
[365399469,1749652241135,-150.28,0.0001999,2]
[365399470,1749652241145,-150.28,0.0001999,2]
[365399471,1749652241154,-150.28,0.0001999,2]
[365399472,1749652241165,-150.28,0.0001999,2]
[365399473,1749652241174,-150.28,0.0001999,2]
[365399474,1749652241183,-150.28,0.0001999,2]
[365399475,1749652241193,-1944.3569497,0.00019996,2]
[365399476,1749652241202,-13202.5464913,0.00019996,2]
[365399477,1749652241212,-550.0,0.00019997,2]
[365399478,1749652241221,-550.0,0.00019997,2]
[365399479,1749652241230,-150.0,0.00019997,2]
[365399480,1749652241239,-150.0,0.00019997,2]
[365399481,1749652241249,-200.0,0.00019997,2]
[365399482,1749652241258,-200.82939456,0.00019997,2]
[365399483,1749652241267,-669.08307195,0.00019999,2]
[365399484,1749652241276,-666.0,0.00019999,2]
[365399485,1749652241285,-442.60614661,0.00019999,2]
[365399486,1749652241295,-666.0,0.00019999,2]
[365399487,1749652241304,-300.0,0.00019999,2]
[365399489,1749652241314,-300.0,0.00019999,2]
[365399491,1749652241323,-300.0,0.00019999,2]
[365399493,1749652241332,-2002.63748951,0.00019999,2]
[365399495,1749652241341,-1000.0,0.00019999,2]
[365399497,1749652241352,-1000.0,0.00019999,2]
[365399498,1749652241361,-1000.0,0.00019999,2]
[365399499,1749652241370,-500.0,0.00019999,2]
[365399500,1749652241379,-1758.61088926,0.00019999,2]
[365399501,1749652241388,-150.0,0.00019999,2]
[365399502,1749652241398,-167.7,0.00019999,2]
[365399503,1749652241410,-1000.0,0.00019999,2]
[365399504,1749652241421,-1000.0,0.00019999,2]
[365399505,1749652241430,-1000.0,0.00019999,2]
[365399506,1749652241440,-1000.0,0.00019999,2]
[365399507,1749652241450,-1000.0,0.00019999,2]
[365399508,1749652241459,-10528.34451233,0.00019999,2]
[365399509,1749652241468,-156253.31785807,0.0002,2]
[365399510,1749652241479,-785.37766332,0.0002,2]
[365399511,1749652241488,-743853.2546087,0.0002,3]
[365399512,1749652241497,-22485.70429105,0.0002,3]
[365399513,1749652241506,-2957681.82239486,0.0002,2]
[365399514,1749652241516,-2000.0,0.0002,2]
[365399515,1749652241525,-2000.0,0.0002,2]
[365399516,1749652241535,-11887.89907049,0.0002,2]
[365399517,1749652241545,-192355.80686362,0.0002,2]
[365399518,1749652241558,-468.05179682,0.0002,2]
[365399519,1749652241570,-2776.37165228,0.0002,2]
[365399520,1749652241596,-322.07425175,0.00019892,2]
[365399521,1749652241614,-558.89350208,0.00019892,2]
[365399522,1749652241636,-4014.9221722,0.00019892,2]
[365399523,1749652241648,-3193.67544631,0.0002,2]
[365399524,1749652241663,-440.48,0.0002,2]
[365399525,1749652241678,-1263.10000002,0.0002,2]
[365399526,1749652241690,-3084.6380693,0.0002,2]
[365399527,1749652241700,-688777.95968506,0.0002,2]
[365399528,1749652241711,-2162.92837654,0.0002,2]
[365399529,1749652241722,-42257.26427658,0.0002,2]
[365399530,1749652241734,-3148.82691054,0.0002,2]
[365399531,1749652241745,-42521.90739921,0.0002,2]
[365399532,1749652241756,-10747.63964223,0.0002,2]
[365399533,1749652241768,-1754.0,0.0002,2]
[365399534,1749652241778,-1510.0,0.0002,2]
[365399535,1749652241789,-1760.0000001,0.0002,2]
[365399536,1749652241800,-3013.72439585,0.0002,2]
[365399537,1749652241811,-4745.481,0.0002,2]
[365399538,1749652241822,-3183.02710155,0.0002,2]
[365399539,1749652241832,-3606.34311837,0.0002,2]
[365399540,1749652241843,-360.63804841,0.0002,2]
[365399541,1749652241854,-443.17417343,0.0002,2]
[365399542,1749652241865,-1047.09603216,0.0002,2]
[365399543,1749652241919,221.0,0.00016233,2]
[365399548,1749652243058,-1228.49761,0.0002,2]
[365399549,1749652243216,-1449.12186225,0.0002,2]
[365399550,1749652243228,-433.58859915,0.0002,2]
[365399633,1749652246018,-281.0,0.00019894,2]
[365399634,1749652246100,-1777.40062466,0.00019894,2]
[365399635,1749652246111,-2837.48930137,0.00019894,2]
[365399636,1749652246120,-3563.4061838,0.0002,2]
[365399637,1749652246130,-55101.4463416,0.0002,2]
[365399638,1749652246141,-4113.92737172,0.0002,2]
[365399639,1749652246151,-1862.50661027,0.0002,2]
[365399640,1749652246163,-708.39461499,0.0002,2]
[365399641,1749652246206,-248980.3336585,0.0002,2]
[365399642,1749652246217,-867.194902,0.0002,2]
[365399643,1749652246288,-3348.20771986,0.0002,2]
[365399648,1749652287453,584.62478383,0.00016164,2]
[365399649,1749652293150,334.57,0.00024658,120]
[365399650,1749652391007,1728.91723178,0.00017,2]
[365399651,1749652391032,5786.71276822,0.00017,2]
[365399656,1749652565192,1000.0,0.00017,2]
[365399657,1749652577460,508.23429075,0.00017,2]
[365399662,1749652744692,1225.01,0.00016791,2]
[365399663,1749652839873,4785.77,0.00024658,120]
[365399664,1749653225195,-206.0,0.0001776,2]
[365399665,1749653225231,-202.0,0.0001776,2]
[365399666,1749653225266,-300.0,0.00018262,2]
[365399667,1749653225299,-297.0,0.00018263,2]
[365399668,1749653225335,-303.24,0.00018263,2]
[365399669,1749653225370,-303.56,0.00018263,2]
[365399670,1749653225405,-304.18,0.00018263,2]
[365399671,1749653225442,-301.16,0.00018263,2]
[365399672,1749653225478,-302.18,0.00018263,2]
[365399673,1749653225513,-305.95,0.00018263,2]
[365399674,1749653225548,-303.87,0.00018263,2]
[365399675,1749653225583,-301.88,0.00018263,2]
[365399676,1749653225618,-301.28,0.00018263,2]
[365399677,1749653225652,-300.49,0.00018263,2]
[365399678,1749653225686,-303.63,0.00018263,2]
[365399679,1749653225725,-300.88,0.00018263,2]
[365399680,1749653225761,-300.38,0.00018263,2]
[365399681,1749653225796,-304.99,0.00018263,2]
[365399682,1749653225831,-304.24,0.00018263,2]
[365399683,1749653225868,-300.18,0.00018263,2]
[365399684,1749653225918,-300.99,0.00018263,2]
[365399685,1749653225962,-303.39,0.00018263,2]
[365399686,1749653226000,-300.71,0.00018263,2]
[365399687,1749653226036,-156.61,0.00018263,2]
[365399688,1749653226072,-303.67,0.00018263,2]
[365399689,1749653226108,-303.07,0.00018264,2]
[365399690,1749653226143,-304.5,0.00018264,2]
[365399691,1749653226179,-304.44,0.00018264,2]
[365399692,1749653226215,-300.68,0.00018264,2]
[365399693,1749653226250,-303.25,0.00018264,2]
[365399694,1749653226655,-300.85,0.00018264,2]
[365399695,1749653226694,-26.45040848,0.00018264,2]
[365399696,1749653232176,-278.42959152,0.00018264,2]
[365399697,1749653232200,-304.92,0.00018264,2]
[365399698,1749653232221,-301.64,0.00018264,2]
[365399699,1749653232242,-304.96,0.00018264,2]
[365399700,1749653232264,-509.89,0.00018264,2]
[365399701,1749653232287,-228.87342676,0.00018264,2]
[365399702,1749653245088,-277.61657324,0.00018264,2]
[365399703,1749653245112,-499.37,0.00018264,2]
[365399704,1749653245134,-495.19,0.00018264,2]
[365399705,1749653245156,-158.76130313,0.00018264,2]
[365399707,1749653266775,317.91,0.00013699,2]
[365399716,1749653412076,206.0,0.0001676,2]
[365399717,1749653418435,268.14989516,0.00016164,2]
[365399720,1749653432084,-305.81,0.00018264,2]
[365399721,1749653432094,-259.1408,0.00018264,2]
[365399723,1749653432105,-43.6292,0.00018264,2]
[365399724,1749653432114,-300.97,0.00018264,2]
[365399725,1749653432123,-301.38,0.00018264,2]
[365399726,1749653432132,-305.77,0.00018264,2]
[365399727,1749653432143,-303.79,0.00018264,2]
[365399728,1749653432152,-305.06,0.00018264,2]
[365399729,1749653432161,-211.81467894,0.00018264,2]
[365399730,1749653432192,-90.49532106,0.00018264,2]
[365399731,1749653432202,-334.95869687,0.00018264,2]
[365399732,1749653432211,-507.18,0.00018264,2]
[365399733,1749653432221,-505.11,0.00018264,2]
[365399734,1749653432230,-504.27,0.00018264,2]
[365399735,1749653432239,-493.94,0.00018264,2]
[365399736,1749653432249,-509.22,0.00018264,2]
[365399737,1749653432258,-496.85,0.00018264,2]
[365399738,1749653432267,-504.54,0.00018264,2]
[365399739,1749653432276,-666.0,0.00018264,2]
[365399740,1749653432286,-151.0,0.00018264,2]
[365399741,1749653432295,-151.0,0.00018264,2]
[365399742,1749653432304,-206.0,0.00018305,4]
[365399743,1749653432313,-302.83,0.00018428,2]
[365399744,1749653432322,-302.97,0.00018478,2]
[365399745,1749653432331,-150.0,0.0001855,7]
[365399746,1749653432341,-1000.0,0.00018597,2]
[365399747,1749653432350,-2895.43,0.00018597,2]
[365399748,1749653432359,-1044.07,0.00018613,2]
[365399749,1749653432368,-305.91,0.00018727,2]
[365399750,1749653432378,-162.11,0.0001883,2]
[365399751,1749653432389,-250.0,0.00018845,2]
[365399752,1749653432399,-3178.37598207,0.00018848,2]
[365399753,1749653432410,-358.34401793,0.00018848,2]
[365399754,1749653432420,-257.78,0.00018848,2]
[365399755,1749653432430,-245.71012696,0.000189,2]
[365399756,1749653432439,-151.0,0.0001893,2]
[365399757,1749653432448,-300.0,0.0001893,2]
[365399758,1749653432457,-1957.856,0.0001893,2]
[365399759,1749653432467,-750.0,0.0001893,2]
[365399760,1749653432476,-500.0,0.0001893,2]
[365399761,1749653432486,-500.0,0.0001893,2]
[365399762,1749653432495,-750.0,0.0001893,2]
[365399772,1749653432675,-500.0,0.0001893,2]
[365399774,1749653432685,-750.0,0.0001893,2]
[365399776,1749653432694,-500.0,0.0001893,2]
[365399778,1749653432704,-750.0,0.0001893,2]
[365399780,1749653432713,-500.0,0.0001893,2]
[365399782,1749653432722,-899.33892291,0.0001893,2]
[365399784,1749653432731,-500.0,0.0001893,2]
[365399786,1749653432741,-151.0,0.0001893,2]
[365399788,1749653432750,-500.0,0.0001893,2]
[365399790,1749653432759,-151.0,0.0001893,2]
[365399791,1749653432768,-18.56133219,0.0001893,2]
[365399803,1749653432857,-481.43866781,0.0001893,2]
[365399805,1749653432868,-500.0,0.0001893,2]
[365399807,1749653432877,-465.26873537,0.0001893,2]
[365399809,1749653432886,-668.65185757,0.0001893,2]
[365399811,1749653432894,-207.4,0.0001893,2]
[365399813,1749653432903,-832.40435543,0.00018985,2]
[365399815,1749653432912,-485.73,0.00019,2]
[365399816,1749653432921,-485.73,0.00019,2]
[365399818,1749653432930,-485.73,0.00019,2]
[365399821,1749653432939,-485.73,0.00019,2]
[365399822,1749653432949,-485.73,0.00019,2]
[365399824,1749653432959,-1225.01,0.00019055,2]
[365399827,1749653432969,-245.71012669,0.00019107,2]
[365399828,1749653432978,-151.0,0.00019178,2]
[365399830,1749653432988,-907.11,0.00019178,2]
[365399832,1749653432997,-245.71012669,0.00019314,2]
[365399834,1749653433006,-1613.65852404,0.00019421,2]
[365399837,1749653433017,-903.26324775,0.00019421,2]
[365399840,1749653433036,-475.84822821,0.00019421,2]
[365399842,1749653433045,-155.31328115,0.00019478,2]
[365399844,1749653433054,-245.71012669,0.00019521,2]
[365399846,1749653433063,-354.51,0.00019564,2]
[365399848,1749653433072,-302.0,0.00019697,2]
[365399850,1749653433082,-162.174,0.00019726,2]
[365399852,1749653433091,-245.71012669,0.00019728,2]
[365399854,1749653433100,-150.0,0.00019731,2]
[365399856,1749653433109,-150.0,0.00019773,2]
[365399858,1749653433118,-1000.0,0.00019778,2]
[365399860,1749653433127,-150.0,0.00019781,2]
[365399862,1749653433139,-574.73911275,0.00019788,2]
[365399863,1749653433148,-4656.59513255,0.0001979,2]
[365399866,1749653433158,-157.46014026,0.00019791,2]
[365399867,1749653433168,-500.0,0.00019791,2]
[365399869,1749653433177,-500.0,0.00019791,2]
[365399871,1749653433187,-500.0,0.00019791,2]
[365399873,1749653433197,-500.0,0.00019791,2]
[365399875,1749653433206,-500.0,0.00019791,2]
[365399878,1749653433216,-500.0,0.00019791,2]
[365399879,1749653433227,-500.0,0.00019791,2]
[365399881,1749653433237,-500.0,0.00019791,2]
[365399883,1749653433246,-500.0,0.00019791,2]
[365399885,1749653433256,-500.0,0.00019791,2]
[365399888,1749653433266,-500.0,0.00019791,2]
[365399890,1749653433276,-500.0,0.00019791,2]
[365399892,1749653433285,-500.0,0.00019791,2]
[365399894,1749653433295,-500.0,0.00019791,2]
[365399896,1749653433305,-500.0,0.00019791,2]
[365399898,1749653433316,-500.0,0.00019791,2]
[365399900,1749653433325,-500.0,0.00019791,2]
[365399902,1749653433335,-500.0,0.00019791,2]
[365399903,1749653433344,-500.0,0.00019791,2]
[365399905,1749653433354,-500.0,0.00019791,2]
[365399907,1749653433364,-500.0,0.00019791,2]
[365399909,1749653433373,-500.0,0.00019791,2]
[365399911,1749653433386,-500.0,0.00019791,2]
[365399912,1749653433397,-500.0,0.00019791,2]
[365399913,1749653433407,-500.0,0.00019791,2]
[365399914,1749653433418,-500.0,0.00019791,2]
[365399915,1749653433428,-500.0,0.00019791,2]
[365399916,1749653433438,-500.0,0.00019791,2]
[365399917,1749653433448,-500.0,0.00019791,2]
[365399918,1749653433458,-500.0,0.00019791,2]
[365399919,1749653433468,-500.0,0.00019791,2]
[365399920,1749653433479,-500.0,0.00019791,2]
[365399921,1749653433489,-500.0,0.00019791,2]
[365399922,1749653433499,-500.0,0.00019791,2]
[365399923,1749653433509,-500.0,0.00019791,2]
[365399924,1749653433519,-500.0,0.00019791,2]
[365399925,1749653433529,-500.0,0.00019791,2]
[365399926,1749653433539,-500.0,0.00019791,2]
[365399927,1749653433548,-500.0,0.00019791,2]
[365399928,1749653433557,-500.0,0.00019791,2]
[365399929,1749653433567,-500.0,0.00019791,2]
[365399930,1749653433576,-500.0,0.00019791,2]
[365399931,1749653433586,-500.0,0.00019791,2]
[365399932,1749653433596,-500.0,0.00019791,2]
[365399933,1749653433606,-500.0,0.00019791,2]
[365399934,1749653433616,-500.0,0.00019791,2]
[365399935,1749653433627,-500.0,0.00019791,2]
[365399936,1749653433640,-500.0,0.00019791,2]
[365399937,1749653433651,-500.0,0.00019791,2]
[365399938,1749653433661,-500.0,0.00019791,2]
[365399939,1749653433671,-500.0,0.00019791,2]
[365399940,1749653433681,-500.0,0.00019791,2]
[365399941,1749653433691,-500.0,0.00019791,2]
[365399942,1749653433700,-500.0,0.00019791,2]
[365399943,1749653433710,-500.0,0.00019791,2]
[365399944,1749653433721,-500.0,0.00019791,2]
[365399945,1749653433732,-500.0,0.00019791,2]
[365399946,1749653433742,-279.4349203,0.00019791,2]
[365399947,1749653433752,-500.0,0.00019791,2]
[365399948,1749653433763,-500.0,0.00019791,2]
[365399949,1749653433773,-500.0,0.00019791,2]
[365399950,1749653433784,-500.0,0.00019791,2]
[365399951,1749653433798,-500.0,0.00019791,2]
[365399952,1749653433810,-500.0,0.00019791,2]
[365399953,1749653433821,-500.0,0.00019791,2]
[365399954,1749653433831,-500.0,0.00019791,2]
[365399955,1749653433844,-58.90112014,0.00019791,2]
[365399956,1749653433882,-441.09887986,0.00019791,2]
[365399957,1749653433899,-419.94399345,0.00019791,2]
[365399958,1749653438660,-304.86,0.00018264,2]
[365399960,1749653438670,-267.62607221,0.00019791,2]
[365399962,1749653438680,-294.00441624,0.00019792,2]
[365399964,1749653438690,-1858.24601155,0.00019792,2]
[365399966,1749653438701,-2544.70043155,0.00019792,2]
[365399968,1749653438712,-5686.2,0.00019792,2]
[365399973,1749653438781,-1094.29579222,0.00019792,2]
[365399974,1749653438796,-300.0,0.00019799,2]
[365399975,1749653438805,-2745.2228,0.000198,2]
[365399976,1749653438814,-11183.44223525,0.00019804,2]
[365399977,1749653438823,-150.0,0.00019809,2]
[365399978,1749653438834,-11183.44223525,0.00019816,2]
[365399979,1749653438843,-150.0,0.00019822,2]
[365399980,1749653438852,-150.0,0.00019823,2]
[365399981,1749653438861,-1000.0,0.00019828,2]
[365399982,1749653438873,-11183.44223525,0.00019828,2]
[365399983,1749653438883,-500.0,0.0001984,2]
[365399984,1749653438897,-11183.44223525,0.0001984,2]
[365399985,1749653438907,-1000.0,0.00019845,2]
[365399986,1749653438916,-206.0,0.00019849,6]
[365399987,1749653438925,-11183.44223525,0.00019852,2]
[365399988,1749653438934,-1000.0,0.00019865,2]
[365399989,1749653438944,-77110.94409502,0.0001988,2]
[365399990,1749653438953,-1000.0,0.00019892,2]
[365399991,1749653438962,-796.206671,0.00019895,2]
[365399992,1749653438971,-4393.2313219,0.00019899,2]
[365399993,1749653438981,-4393.23132185,0.00019899,2]
[365399994,1749653438990,-4393.23132185,0.00019899,2]
[365399995,1749653438999,-4393.23132185,0.00019899,2]
[365399996,1749653439009,-4393.23132185,0.00019899,2]
[365399997,1749653439018,-4393.23132185,0.000199,2]
[365399998,1749653439027,-4393.23132185,0.000199,2]
[365399999,1749653439036,-5000.0,0.000199,2]
[365400000,1749653439045,-4393.23132185,0.000199,2]
[365400001,1749653439054,-905.39213995,0.000199,2]
[365400002,1749653439066,-1251.78826814,0.000199,2]
[365400003,1749653439076,-771.26054705,0.000199,2]
[365400005,1749653439087,-624.05206949,0.000199,2]
[365400007,1749653439099,-407.19763655,0.000199,2]
[365400009,1749653439112,-433.54066067,0.000199,2]
[365400011,1749653439121,-160.30486295,0.000199,2]
[365400012,1749653439130,-1184.4686025,0.000199,2]
[365400014,1749653439141,-483.4482442,0.000199,2]
[365400016,1749653439150,-4393.23132185,0.000199,2]
[365400018,1749653439159,-1706.55014684,0.000199,2]
[365400020,1749653439168,-11708.88635756,0.000199,2]
[365400022,1749653439177,-246.05198786,0.000199,2]
[365400024,1749653439187,-1000.0,0.0001991,2]
[365400026,1749653439196,-441.88566868,0.00019915,2]
[365400028,1749653439206,-150.0,0.00019919,2]
[365400030,1749653439216,-420.0,0.00019921,2]
[365400032,1749653439225,-150.0,0.00019923,2]
[365400034,1749653439235,-150.0,0.0001993,2]
[365400036,1749653439244,-245.71012669,0.00019934,2]
[365400038,1749653439254,-1000.0,0.00019963,2]
[365400040,1749653439263,-500.0,0.00019963,2]
[365400042,1749653439273,-207.10700314,0.00019963,2]
[365400044,1749653439282,-500.0,0.00019963,2]
[365400046,1749653439291,-500.0,0.00019963,2]
[365400048,1749653439300,-500.0,0.00019963,2]
[365400050,1749653439309,-500.0,0.00019963,2]
[365400052,1749653439319,-232.78750001,0.00019963,2]
[365400054,1749653439328,-1000.0,0.00019964,2]
[365400056,1749653439337,-150.0,0.00019965,2]
[365400058,1749653439346,-1000.0,0.00019967,2]
[365400060,1749653439356,-1000.0,0.00019967,2]
[365400062,1749653439365,-150.0,0.0001997,2]
[365400064,1749653439375,-150.0,0.0001997,2]
[365400066,1749653439383,-150.0,0.0001997,2]
[365400068,1749653439395,-150.0,0.0001997,2]
[365400070,1749653439405,-150.0,0.0001997,2]
[365400072,1749653439414,-150.0,0.0001997,2]
[365400074,1749653439424,-150.0,0.0001997,2]
[365400076,1749653439433,-150.0,0.0001997,2]